fUST/lending_fUST_20240124
["ID","MTS","AMOUNT","RATE_DAILY","PERIOD"]
[312611630,1706084885175,-500.0,0.00041369,31]
[312611631,1706084885199,-500.0,0.00041369,31]
[312611632,1706084885222,-500.0,0.00041369,31]
[312611633,1706084885245,-500.0,0.00041369,31]
[312611634,1706084885268,-500.0,0.00041369,31]
[312611635,1706084885291,-500.0,0.00041641,31]
[312611636,1706084885315,-500.0,0.00041641,31]
[312611637,1706084885340,-500.0,0.00041641,31]
[312611638,1706084885364,-500.0,0.00041641,31]
[312611639,1706084885388,-1353.07,0.00041642,31]
[312611640,1706084885411,-557.84333149,0.00041642,31]
[312611641,1706084885434,-500.0,0.00041642,31]
[312611642,1706084885456,-500.0,0.00041642,31]
[312611643,1706084885479,-512.41,0.00041642,31]
[312611644,1706084885503,-725.87,0.00041642,31]
[312611645,1706084885526,-356.38773071,0.00041642,31]
[312611646,1706084885549,-246.81086588,0.00041642,31]
[312611647,1706084885572,-570.97,0.00041642,31]
[312611648,1706084885594,-500.0,0.00041642,31]
[312611649,1706084885620,-537.63140356,0.00041642,31]
[312611650,1706084885646,-582.81,0.00041642,31]
[312611651,1706084885669,-577.23816877,0.00041643,31]
[312611652,1706084885693,-802.32,0.00041643,31]
[312611653,1706084885717,-500.0,0.00041643,31]
[312611654,1706084885740,-500.0,0.00041643,31]
[312611655,1706084885764,-500.0,0.00041643,31]
[312611656,1706084885787,-500.0,0.00041643,31]
[312611657,1706084885811,-500.0,0.00041643,31]
[312611658,1706084885835,-154.29069251,0.00041716,30]
[312611659,1706084885858,-500.0,0.00041915,31]
[312611660,1706084885883,-500.0,0.00041915,31]
[312611661,1706084885907,-500.0,0.00041915,31]
[312611662,1706084885931,-500.0,0.00041915,31]
[312611663,1706084885954,-1353.07,0.00041916,31]
[312611664,1706084885977,-500.0,0.00041916,31]
[312611665,1706084886001,-500.0,0.00041916,31]
[312611666,1706084886024,-512.41,0.00041916,31]
[312611667,1706084886048,-725.87,0.00041916,31]
[312611668,1706084886080,-570.97,0.00041916,31]
[312611669,1706084886110,-500.0,0.00041916,31]
[312611670,1706084886134,-582.81,0.00041916,31]
[312611671,1706084886158,-802.32,0.00041917,31]
[312611672,1706084886181,-500.0,0.00041917,31]
[312611673,1706084886205,-500.0,0.00041917,31]
[312611674,1706084886229,-500.0,0.00041917,31]
[312611675,1706084886374,-180.88,0.00041917,31]
[312611676,1706084886401,-500.0,0.00041917,31]
[312611677,1706084886427,-500.0,0.00042189,31]
[312611678,1706084886451,-500.0,0.00042189,31]
[312611679,1706084886474,-500.0,0.00042189,31]
[312611680,1706084886497,-500.0,0.00042189,31]
[312611681,1706084886521,-1353.07,0.0004219,31]
[312611682,1706084886545,-500.0,0.0004219,31]
[312611683,1706084886569,-500.0,0.0004219,31]
[312611684,1706084886592,-512.41,0.0004219,31]
[312611685,1706084886616,-725.87,0.0004219,31]
[312611686,1706084886640,-570.97,0.0004219,31]
[312611687,1706084886663,-500.0,0.0004219,31]
[312611688,1706084886688,-582.81,0.0004219,31]
[312611689,1706084886713,-802.32,0.00042191,31]
[312611690,1706084886737,-500.0,0.00042191,31]
[312611691,1706084886761,-500.0,0.00042191,31]
[312611692,1706084886784,-500.0,0.00042191,31]
[312611693,1706084886808,-500.0,0.00042191,31]
[312611694,1706084886832,-163.1461608,0.00042268,30]
[312611695,1706084886857,-500.0,0.00042463,31]
[312611696,1706084886882,-500.0,0.00042463,31]
[312611697,1706084886905,-500.0,0.00042463,31]
[312611698,1706084886929,-500.0,0.00042463,31]
[312611699,1706084886952,-1353.07,0.00042464,31]
[312611700,1706084886977,-500.0,0.00042464,31]
[312611701,1706084887000,-500.0,0.00042464,31]
[312611702,1706084887024,-512.41,0.00042464,31]
[312611703,1706084887047,-725.87,0.00042464,31]
[312611704,1706084887070,-570.97,0.00042464,31]
[312611705,1706084887093,-500.0,0.00042464,31]
[312611706,1706084887116,-582.81,0.00042464,31]
[312611707,1706084887141,-802.32,0.00042465,31]
[312611708,1706084887164,-356.2315,0.00042465,31]
[312611709,1706084887189,-500.0,0.00042465,31]
[312611710,1706084887212,-493.80478446,0.00042465,31]
[312611711,1706084887236,-500.0,0.00042465,31]
[312611712,1706084887260,-150.0,0.00042632,120]
[312611713,1706084887285,-500.0,0.00042737,31]
[312611714,1706084887309,-500.0,0.00042737,31]
[312611715,1706084887333,-500.0,0.00042737,31]
[312611716,1706084887357,-500.0,0.00042737,31]
[312611717,1706084887381,-1353.07,0.00042738,31]
[312611718,1706084887405,-500.0,0.00042738,31]
[312611719,1706084887429,-637.73913149,0.00042738,31]
[312611720,1706084887451,-512.41,0.00042738,31]
[312611721,1706084887475,-725.87,0.00042738,31]
[312611722,1706084887500,-570.97,0.00042738,31]
[312611723,1706084887526,-500.0,0.00042738,31]
[312611724,1706084887551,-582.81,0.00042738,31]
[312611725,1706084887573,-802.32,0.00042739,31]
[312611726,1706084887595,-500.0,0.00042739,31]
[312611727,1706084887621,-500.0,0.00042739,31]
[312611728,1706084887648,-500.0,0.00042999,60]
[312611729,1706084887671,-500.0,0.00042999,60]
[312611730,1706084887694,-500.0,0.00042999,60]
[312611731,1706084887717,-500.0,0.00042999,60]
[312611732,1706084887740,-500.0,0.00042999,60]
[312611733,1706084887763,-500.0,0.00042999,60]
[312611734,1706084887787,-500.0,0.00042999,60]
[312611735,1706084887811,-500.0,0.00042999,60]
[312611736,1706084887833,-500.0,0.00042999,60]
[312611737,1706084887857,-500.0,0.00042999,60]
[312611738,1706084887881,-500.0,0.00042999,60]
[312611739,1706084887904,-500.0,0.00042999,60]
[312611740,1706084887927,-500.0,0.00042999,60]
[312611741,1706084887951,-500.0,0.00042999,60]
[312611742,1706084887974,-500.0,0.00042999,60]
[312611743,1706084887997,-500.0,0.00042999,60]
[312611744,1706084888020,-500.0,0.00042999,60]
[312611745,1706084888042,-500.0,0.00042999,60]
[312611746,1706084888066,-500.0,0.00042999,60]
[312611747,1706084888089,-500.0,0.00042999,60]
[312611748,1706084888113,-500.0,0.00042999,60]
[312611749,1706084888140,-500.0,0.00042999,60]
[312611750,1706084888164,-500.0,0.00042999,60]
[312611751,1706084888190,-500.0,0.00042999,60]
[312611752,1706084888214,-500.0,0.00042999,60]
[312611753,1706084888241,-500.0,0.00042999,60]
[312611754,1706084888266,-500.0,0.00042999,60]
[312611755,1706084888292,-500.0,0.00042999,60]
[312611756,1706084888316,-500.0,0.00042999,60]
[312611757,1706084888341,-500.0,0.00042999,60]
[312611758,1706084888364,-500.0,0.00042999,60]
[312611759,1706084888392,-500.0,0.00042999,60]
[312611760,1706084888418,-500.0,0.00042999,60]
[312611761,1706084888440,-500.0,0.00042999,60]
[312611762,1706084888463,-500.0,0.00042999,60]
[312611763,1706084888486,-500.0,0.00042999,60]
[312611764,1706084888511,-500.0,0.00042999,60]
[312611765,1706084888534,-500.0,0.00042999,60]
[312611766,1706084888557,-500.0,0.00042999,60]
[312611767,1706084888581,-504.41671153,0.00042999,60]
[312611768,1706084888604,-500.0,0.00042999,60]
[312611769,1706084888631,-500.0,0.00042999,60]
[312611770,1706084888653,-500.0,0.00042999,60]
[312611771,1706084888677,-500.0,0.00042999,60]
[312611772,1706084888700,-529.22979916,0.00043,30]
[312611773,1706084888724,-312.0,0.00043,60]
[312611774,1706084888746,-7383.82989425,0.00043,100]
[312611775,1706084888769,-150.0,0.00043,30]
[312611776,1706084888793,-500.0,0.00043011,31]
[312611777,1706084888816,-269.09323733,0.00043011,31]
[312611778,1706084888841,-500.0,0.00043011,31]
[312611779,1706084888939,-500.0,0.00043011,31]
[312611780,1706084888980,-1353.07,0.00043012,31]
[312611781,1706084889003,-500.0,0.00043012,31]
[312611782,1706084889027,-512.41,0.00043012,31]
[312611783,1706084889051,-725.87,0.00043012,31]
[312611784,1706084889073,-570.97,0.00043012,31]
[312611785,1706084889096,-500.0,0.00043012,31]
[312611786,1706084889119,-582.81,0.00043012,31]
[312611787,1706084889144,-802.32,0.00043013,31]
[312611788,1706084889166,-500.0,0.00043013,31]
[312611789,1706084889189,-500.0,0.00043013,31]
[312611790,1706084889213,-500.0,0.00043285,31]
[312611791,1706084889237,-500.0,0.00043285,31]
[312611792,1706084889261,-500.0,0.00043285,31]
[312611793,1706084889285,-1353.07,0.00043286,31]
[312611794,1706084889308,-500.0,0.00043286,31]
[312611795,1706084889331,-512.41,0.00043286,31]
[312611796,1706084889354,-725.87,0.00043286,31]
[312611797,1706084889377,-570.97,0.00043286,31]
[312611798,1706084889399,-500.0,0.00043286,31]
[312611799,1706084889423,-582.81,0.00043286,31]
[312611800,1706084889446,-802.32,0.00043287,31]
[312611801,1706084889468,-500.0,0.00043287,31]
[312611802,1706084889491,-500.0,0.00043287,31]
[312611803,1706084889514,-500.0,0.00043402,60]
[312611804,1706084889537,-500.0,0.00043402,60]
[312611805,1706084889560,-500.0,0.00043402,60]
[312611806,1706084889583,-500.0,0.00043402,60]
[312611807,1706084889605,-500.0,0.00043402,60]
[312611808,1706084889629,-500.0,0.00043402,60]
[312611809,1706084889653,-500.0,0.00043402,60]
[312611810,1706084889678,-251.10417788,0.00043402,60]
[312611811,1706084889702,-500.0,0.00043402,60]
[312611812,1706084889725,-500.0,0.00043402,60]
[312611813,1706084889749,-500.0,0.00043402,60]
[312611814,1706084889773,-500.0,0.00043402,60]
[312611815,1706084889796,-500.0,0.00043402,60]
[312611816,1706084889823,-150.0,0.0004354,30]
[312611817,1706084889847,-500.0,0.00043559,31]
[312611818,1706084889872,-500.0,0.00043559,31]
[312611819,1706084889895,-500.0,0.00043559,31]
[312611820,1706084889918,-1353.07,0.0004356,31]
[312611821,1706084889941,-500.0,0.0004356,31]
[312611822,1706084889964,-512.41,0.0004356,31]
[312611823,1706084889988,-725.87,0.0004356,31]
[312611824,1706084890011,-570.97,0.0004356,31]
[312611825,1706084890033,-170.55987389,0.0004356,31]
[312611826,1706084890057,-582.81,0.0004356,31]
[312611827,1706084890080,-802.32,0.00043561,31]
[312611828,1706084890104,-500.0,0.00043561,31]
[312611829,1706084890129,-500.0,0.00043561,31]
[312611830,1706084890152,-500.0,0.00043833,31]
[312611831,1706084890176,-500.0,0.00043833,31]
[312611832,1706084890199,-500.0,0.00043833,31]
[312611833,1706084890225,-1353.07,0.00043834,31]
[312611834,1706084890248,-500.0,0.00043834,31]
[312611835,1706084890273,-512.41,0.00043834,31]
[312611836,1706084890298,-725.87,0.00043834,31]
[312611837,1706084890320,-570.97,0.00043834,31]
[312611838,1706084890344,-582.81,0.00043834,31]
[312611839,1706084890369,-802.32,0.00043835,31]
[312611840,1706084890392,-504.97179137,0.00043835,30]
[312611841,1706084890413,-500.0,0.00043835,31]
[312611842,1706084890434,-500.0,0.00043835,31]
[312611843,1706084890455,-500.0,0.00044107,31]
[312611844,1706084890478,-500.0,0.00044107,31]
[312611845,1706084890502,-500.0,0.00044107,31]
[312611846,1706084890524,-1353.07,0.00044108,31]
[312611847,1706084890548,-500.0,0.00044108,31]
[312611848,1706084890573,-512.41,0.00044108,31]
[312611849,1706084890596,-725.87,0.00044108,31]
[312611850,1706084890620,-570.97,0.00044108,31]
[312611851,1706084890645,-582.81,0.00044108,31]
[312611852,1706084890667,-802.32,0.00044109,31]
[312611853,1706084890690,-500.0,0.00044109,31]
[312611854,1706084890713,-500.0,0.00044109,31]
[312611855,1706084890736,-500.0,0.00044381,31]
[312611856,1706084890761,-500.0,0.00044381,31]
[312611857,1706084890784,-500.0,0.00044381,31]
[312611858,1706084890808,-1353.07,0.00044382,31]
[312611859,1706084890832,-500.0,0.00044382,31]
[312611860,1706084890855,-512.41,0.00044382,31]
[312611861,1706084890879,-725.87,0.00044382,31]
[312611862,1706084890902,-570.97,0.00044382,31]
[312611863,1706084890926,-582.81,0.00044382,31]
[312611864,1706084890949,-802.32,0.00044383,31]
[312611865,1706084890972,-338.37725561,0.00044383,31]
[312611866,1706084890995,-500.0,0.00044383,31]
[312611867,1706084891018,-184.94271565,0.000445,30]
[312611868,1706084891041,-500.0,0.00044655,31]
[312611869,1706084891065,-500.0,0.00044655,31]
[312611870,1706084891088,-500.0,0.00044655,31]
[312611871,1706084891111,-1353.07,0.00044656,31]
[312611872,1706084891135,-500.0,0.00044656,31]
[312611873,1706084891157,-512.41,0.00044656,31]
[312611874,1706084891180,-725.87,0.00044656,31]
[312611875,1706084891202,-570.97,0.00044656,31]
[312611876,1706084891224,-582.81,0.00044656,31]
[312611877,1706084891246,-802.32,0.00044657,31]
[312611878,1706084891268,-500.0,0.00044657,31]
[312611879,1706084891289,-229.97771835,0.000448,120]
[312611880,1706084891312,-524.79388025,0.000449,120]
[312611881,1706084891335,-500.0,0.00044929,31]
[312611882,1706084891446,-554.28765677,0.00044929,31]
[312611883,1706084891471,-500.0,0.00044929,31]
[312611884,1706084891499,-1353.07,0.0004493,31]
[312611885,1706084891523,-500.0,0.0004493,31]
[312611886,1706084891547,-512.41,0.0004493,31]
[312611887,1706084891573,-725.87,0.0004493,31]
[312611888,1706084891598,-570.97,0.0004493,31]
[312611889,1706084891626,-582.81,0.0004493,31]
[312611890,1706084891655,-802.32,0.00044931,31]
[312611891,1706084891680,-500.0,0.00044931,31]
[312611892,1706084891704,-607.0,0.0004496,120]
[312611893,1706084891728,-607.0,0.0004496,120]
[312611894,1706084891751,-228.0,0.0004497,120]
[312611895,1706084891775,-228.0,0.0004497,120]
[312611896,1706084891799,-150.5,0.0004497,120]
[312611897,1706084891821,-150.5,0.0004497,120]
[312611898,1706084891843,-150.5,0.0004497,120]
[312611899,1706084891865,-247.77,0.0004497,120]
[312611900,1706084891889,-607.0,0.0004497,120]
[312611901,1706084891911,-607.0,0.0004497,120]
[312611902,1706084891935,-607.0,0.0004497,120]
[312611903,1706084891958,-607.05,0.0004497,120]
[312611904,1706084891983,-228.0,0.0004498,120]
[312611905,1706084892006,-228.0,0.0004498,120]
[312611906,1706084892029,-150.5,0.0004498,120]
[312611907,1706084892055,-150.5,0.0004498,120]
[312611908,1706084892078,-150.5,0.0004498,120]
[312611909,1706084892101,-150.5,0.0004498,120]
[312611910,1706084892126,-199.0,0.0004498,120]
[312611911,1706084892148,-161.96,0.0004498,120]
[312611912,1706084892171,-607.0,0.0004498,120]
[312611913,1706084892196,-276.46,0.0004498,120]
[312611914,1706084892220,-607.0,0.0004498,120]
[312611915,1706084892244,-607.0,0.0004498,120]
[312611916,1706084892268,-607.0,0.0004498,120]
[312611917,1706084892290,-150.5,0.0004499,120]
[312611918,1706084892314,-228.0,0.0004499,120]
[312611919,1706084892337,-228.0,0.0004499,120]
[312611920,1706084892361,-150.5,0.0004499,120]
[312611921,1706084892385,-228.0,0.0004499,120]
[312611922,1706084892408,-150.5,0.0004499,120]
[312611923,1706084892432,-150.5,0.0004499,120]
[312611924,1706084892455,-150.5,0.0004499,120]
[312611925,1706084892481,-202.67,0.0004499,120]
[312611926,1706084892505,-445.34447189,0.00045,30]
[312611927,1706084892528,-1003.45991814,0.00045,120]
[312611928,1706084892551,-322.99896009,0.00045,120]
[312611929,1706084892574,-5000.0,0.00045,30]
[312611930,1706084892597,-5000.0,0.00045159,30]
[312611931,1706084892621,-500.0,0.00045203,31]
[312611932,1706084892653,-500.0,0.00045203,31]
[312611933,1706084892684,-1353.07,0.00045204,31]
[312611934,1706084892714,-500.0,0.00045204,31]
[312611935,1706084892743,-512.41,0.00045204,31]
[312611936,1706084892769,-725.87,0.00045204,31]
[312611937,1706084892800,-570.97,0.00045204,31]
[312611938,1706084892827,-582.81,0.00045204,31]
[312611939,1706084892853,-600.0,0.00045205,31]
[312611940,1706084892881,-600.0,0.00045205,31]
[312611941,1706084892907,-400.27153062,0.00045205,31]
[312611942,1706084892934,-802.32,0.00045205,31]
[312611943,1706084892958,-500.0,0.00045205,31]
[312611944,1706084892985,-500.0,0.00045477,31]
[312611945,1706084893013,-500.0,0.00045477,31]
[312611946,1706084893039,-1353.07,0.00045478,31]
[312611947,1706084893067,-500.0,0.00045478,31]
[312611948,1706084893095,-512.41,0.00045478,31]
[312611949,1706084893125,-725.87,0.00045478,31]
[312611950,1706084893153,-570.97,0.00045478,31]
[312611951,1706084893177,-582.81,0.00045478,31]
[312611952,1706084893201,-802.32,0.00045479,31]
[312611953,1706084893230,-500.0,0.00045479,31]
[312611954,1706084893255,-488.16375054,0.00045751,31]
[312611955,1706084893285,-565.67457623,0.00045751,31]
[312611956,1706084893311,-1353.07,0.00045752,31]
[312611957,1706084893338,-500.0,0.00045752,31]
[312611958,1706084893365,-512.41,0.00045752,31]
[312611959,1706084893394,-725.87,0.00045752,31]
[312611960,1706084893421,-570.97,0.00045752,31]
[312611961,1706084893449,-582.81,0.00045752,31]
[312611962,1706084893479,-802.32,0.00045753,31]
[312611963,1706084893507,-500.0,0.00045753,31]
[312611964,1706084893535,-1353.07,0.00046026,31]
[312611965,1706084893560,-500.0,0.00046026,31]
[312611966,1706084893585,-512.41,0.00046026,31]
[312611967,1706084893609,-725.87,0.00046026,31]
[312611968,1706084893849,-570.97,0.00046026,31]
[312611969,1706084893878,-582.81,0.00046026,31]
[312611970,1706084893906,-802.32,0.00046027,31]
[312611971,1706084893933,-500.0,0.00046027,31]
[312611972,1706084893960,-1353.07,0.000463,31]
[312611973,1706084893985,-632.62552354,0.000463,31]
[312611974,1706084894012,-512.41,0.000463,31]
[312611975,1706084894039,-725.87,0.000463,31]
[312611976,1706084894065,-570.97,0.000463,31]
[312611977,1706084894090,-582.81,0.000463,31]
[312611978,1706084894115,-802.40631834,0.00046301,31]
[312611979,1706084894142,-435.15565024,0.00046301,31]
[312611980,1706084894168,-1353.13840451,0.00046573,31]
[312611981,1706084894195,-512.50113433,0.00046573,31]
[312611982,1706084894344,-726.02588103,0.00046573,31]
[312611983,1706084894367,-571.10234598,0.00046573,31]
[312611984,1706084894392,-582.8460403,0.00046573,31]
[312611985,1706084894417,-2667.0,0.00047397,30]
[312611986,1706084894443,-158043.11022777,0.00048,120]
[312611987,1706084900602,-500.0,0.00042999,60]
[312611988,1706084900631,-500.0,0.00042999,60]
[312611989,1706084900658,-500.0,0.00042999,60]
[312611990,1706084900684,-500.0,0.00042999,60]
[312611991,1706084900711,-500.0,0.00042999,60]
[312611992,1706084900736,-500.0,0.00042999,60]
[312611993,1706084900760,-500.0,0.00042999,60]
[312611994,1706084900786,-500.0,0.00042999,60]
[312611995,1706084900811,-500.0,0.00042999,60]
[312611996,1706084900835,-500.0,0.00042999,60]
[312611997,1706084900861,-500.0,0.00042999,60]
[312611998,1706084900889,-500.0,0.00042999,60]
[312611999,1706084900916,-500.0,0.00042999,60]
[312612000,1706084900941,-500.0,0.00042999,60]
[312612001,1706084900966,-500.0,0.00042999,60]
[312612002,1706084900991,-500.0,0.00042999,60]
[312612003,1706084901017,-500.0,0.00042999,60]
[312612004,1706084901043,-500.0,0.00042999,60]
[312612005,1706084901069,-500.0,0.00042999,60]
[312612006,1706084901094,-500.0,0.00042999,60]
[312612007,1706084901119,-500.0,0.00042999,60]
[312612008,1706084901149,-500.0,0.00042999,60]
[312612009,1706084901174,-500.0,0.00042999,60]
[312612010,1706084901200,-500.0,0.00042999,60]
[312612011,1706084901225,-400.0,0.00042999,60]
[312612012,1706084901250,-500.0,0.00042999,60]
[312612013,1706084901274,-500.0,0.00042999,60]
[312612014,1706084901300,-500.0,0.00042999,60]
[312612015,1706084901326,-500.0,0.00042999,60]
[312612016,1706084901351,-151.89300709,0.0004319,60]
[312612017,1706084901381,-500.0,0.00043402,60]
[312612018,1706084901407,-500.0,0.00043402,60]
[312612019,1706084901434,-500.0,0.00043402,60]
[312612020,1706084901459,-500.0,0.00043402,60]
[312612021,1706084901485,-500.0,0.00043402,60]
[312612022,1706084901510,-500.0,0.00043402,60]
[312612023,1706084901536,-600.0,0.00043402,60]
[312612024,1706084901566,-150.5,0.0004496,120]
[312612025,1706084901589,-150.5,0.0004497,120]
[312612026,1706084901613,-150.5,0.0004498,120]
[312612027,1706084901645,-341956.88977223,0.00048,120]
[312612028,1706084901669,-2000.0,0.00048684,30]
[312612029,1706084901693,-458.70526849,0.00049,30]
[312612030,1706084901717,-36981.01195219,0.00049,120]
[312612031,1706084906650,-223.18,0.0004497,120]
[312612032,1706084906678,-150.5,0.0004498,120]
[312612033,1706084906710,-399626.32,0.00049,120]
[312612034,1706084931405,-63392.66804781,0.00049,120]
[312612035,1706084931430,-600.39180555,0.000495,120]
[312612036,1706084931453,-817.462,0.00049897,120]
[312612037,1706084931476,-817.462,0.00049897,120]
[312612038,1706084931610,-817.462,0.00049897,120]
[312612039,1706084931635,-223.943,0.00049897,120]
[312612040,1706084931661,-817.462,0.00049897,120]
[312612041,1706084931684,-223.943,0.00049897,120]
[312612042,1706084931706,-817.462,0.00049897,120]
[312612043,1706084931729,-223.944,0.00049897,120]
[312612044,1706084931751,-223.943,0.00049897,120]
[312612045,1706084931774,-223.943,0.00049897,120]
[312612046,1706084931796,-1136.1808972,0.000499,120]
[312612047,1706084931817,-584.74791338,0.00049987,120]
[312612048,1706084931840,-366.0,0.0005,120]
[312612049,1706084931861,-200.0,0.0005,120]
[312612050,1706084931884,-228512.98533606,0.0005,120]
[312612051,1706084934953,-271487.01466394,0.0005,120]
[312612052,1706084934977,-1000.0,0.0005,120]
[312612053,1706084935002,-1000.0,0.0005,120]
[312612054,1706084935025,-1000.0,0.000505,120]
[312612055,1706084935050,-1000.0,0.00051,120]
[312612056,1706084935072,-1000.0,0.00051,120]
[312612057,1706084935095,-587.85550158,0.000513,120]
[312612058,1706084935119,-527.0,0.000515,120]
[312612059,1706084935142,-270.09344358,0.0005151,120]
[312612060,1706084935166,-1000.0,0.00051999,120]
[312612061,1706084935191,-21128.0363909,0.000525,120]
[312612062,1706084938116,-300000.0,0.000525,120]
[312612063,1706084948437,-178871.9636091,0.000525,120]
[312612064,1706084948458,-665.5822249,0.00052596,120]
[312612065,1706084948481,-120462.454166,0.00053,120]
[312612103,1706085042801,-267.77554991,0.00030134,4]
[312612104,1706085042813,-407.83742622,0.00030135,4]
[312612105,1706085042822,-688.69585509,0.00030136,4]
[312612106,1706085042832,-164.979449,0.00030137,2]
[312612107,1706085042842,-124.11171978,0.00032065,4]
[312612108,1706085042853,-396.85223137,0.00032065,4]
[312612142,1706085045934,-6479.28595302,0.00032065,4]
[312612143,1706085045943,-155.03932111,0.00032071,2]
[312612144,1706085045953,-164.979449,0.00032329,2]
[312612145,1706085045963,-164.979449,0.00034521,2]
[312612146,1706085045973,-154.86062544,0.00036,4]
[312612147,1706085045983,-164.979449,0.00036712,2]
[312612148,1706085045995,-865.0,0.000369,2]
[312612150,1706085046005,-2616.8966231,0.00037729,4]
[312612151,1706085046014,-10996.44913033,0.0003773,4]
[312612152,1706085046025,-11560.2133615,0.0003773,4]
[312612153,1706085046035,-2084.66431328,0.00037731,4]
[312612154,1706085046044,-164.979449,0.00038904,2]
[312612155,1706085046054,-309.58212674,0.00039726,4]
[312612156,1706085046064,-764.12394505,0.00039726,2]
[312612157,1706085046073,-1200.0,0.00039726,4]
[312612158,1706085046082,-157.14931489,0.00039726,2]
[312612159,1706085046092,-158.1008274,0.00039781,2]
[312612160,1706085046101,-153.0,0.000398,2]
[312612161,1706085046110,-199.2894744,0.000398,2]
[312612162,1706085046120,-199.2894744,0.000398,2]
[312612163,1706085046129,-500.0,0.00039999,7]
[312612164,1706085046139,-802.32,0.00039999,7]
[312612165,1706085046148,-500.0,0.00039999,7]
[312612166,1706085046158,-500.0,0.00039999,7]
[312612167,1706085046167,-1000.0,0.00039999,2]
[312612168,1706085046178,-500.0,0.00039999,7]
[312612169,1706085046188,-500.0,0.00039999,7]
[312612170,1706085046200,-500.0,0.00039999,7]
[312612171,1706085046210,-155.86449511,0.00039999,7]
[312612172,1706085046221,-500.0,0.00039999,7]
[312612173,1706085046231,-1000.0,0.00039999,2]
[312612174,1706085046243,-153.0,0.0004,2]
[312612175,1706085046253,-199.2894744,0.0004,2]
[312612176,1706085046262,-153.0,0.0004,2]
[312612177,1706085046272,-1166.73,0.00040263,3]
[312612179,1706085046402,-972.28,0.00040263,3]
[312612180,1706085046412,-500.0,0.00040271,7]
[312612182,1706085046422,-500.0,0.00040271,7]
[312612183,1706085046431,-507.4,0.00040271,7]
[312612184,1706085046441,-500.0,0.00040271,7]
[312612186,1706085046450,-500.0,0.00040271,7]
[312612188,1706085046459,-500.0,0.00040271,2]
[312612189,1706085046468,-570.97,0.00040271,7]
[312612191,1706085046477,-500.0,0.00040272,7]
[312612192,1706085046488,-961.18,0.00040272,7]
[312612193,1706085046498,-500.0,0.00040272,7]
[312612194,1706085046507,-500.0,0.00040272,7]
[312612195,1706085046517,-582.81,0.00040272,7]
[312612196,1706085046526,-500.0,0.00040272,7]
[312612197,1706085046535,-352.0220451,0.00040272,7]
[312612198,1706085046545,-3546.57,0.00040272,7]
[312612199,1706085046554,-500.0,0.00040272,7]
[312612200,1706085046563,-500.0,0.00040272,7]
[312612201,1706085046572,-725.87,0.00040272,7]
[312612202,1706085046581,-500.0,0.00040272,7]
[312612203,1706085046591,-500.0,0.00040272,7]
[312612204,1706085046600,-500.0,0.00040273,7]
[312612205,1706085046609,-802.32,0.00040273,7]